Cogmind - Beta 11 @@@ ROGUE MODE // 2022.03.27 @ 17:48:21 // Winter2019/RPGLIKE Player: POG Result: Destroyed by Y-45 Defender with Heavy Assault Rifle Performance ------------- Evolutions (1) 500 Regions Visited (2) 400 Robots Destroyed (26) 130 Value Destroyed (545) 545 Prototype IDs (0) 0 Alien Tech Used (0) 0 Bonus (36) 36 TOTAL SCORE: 1611 Bonus ------- High Alert Combat Kills 36 Cogmind --------- Core Integrity 0/600 Matter 263/300 Energy 100/100 System Corruption 6% Temperature Cool (66) Movement Rolling (80) Location -9/Materials Parts ------- > --- POWER (2) -------- (None) > --- PROPULSION (2) --- Wheel > --- UTILITY (3) ------ Signal Interpreter Seismic Detector > --- WEAPON (3) ------- Medium Laser Assault Rifle > --- INVENTORY (2) ---- Large Matter Pod (11) Peak State ------------ > --- POWER ------------ Light Ion Engine > --- PROPULSION ------- Wheel Wheel > --- UTILITY ---------- Signal Interpreter Improved Terrain Scanner Seismic Detector > --- WEAPON ----------- Medium Laser Assault Rifle > --- INVENTORY -------- Large Matter Pod [Rating: 10] Favorites ----------- Power Light Ion Engine Engine Light Ion Engine Propulsion Wheel Wheel Wheel Utility Improved Terrain Scanner Device Improved Terrain Scanner Processor Signal Interpreter Weapon Assault Rifle Energy Gun Medium Laser Ballistic Gun Assault Rifle Build | -11 -10 -9 ------- Run | Scr Mat Mat Slots Evolved 6 | 3 . 3 Power 1 | . . 1 Propulsion 1 | 1 . . Utility 2 | 1 . 1 Weapon 2 | 1 . 1 Parts Attached 10 | 7 2 1 Power 1 | 1 . . Engine 1 | 1 . . Core . | . . . Reactor . | . . . Propulsion 4 | 2 2 . Treads . | . . . Leg . | . . . Wheel 4 | 2 2 . Hover . | . . . Flight . | . . . Utility 3 | 2 . 1 Device 2 | 2 . . Storage . | . . . Processor 1 | . . 1 Hackware . | . . . Protection . | . . . Artifact . | . . . Weapon 2 | 2 . . Energy Gun 1 | 1 . . Energy Cannon . | . . . Ballistic Gun 1 | 1 . . Ballistic Cannon . | . . . Launcher . | . . . Special Weapon . | . . . Impact Weapon . | . . . Slashing Weapon . | . . . Piercing Weapon . | . . . Special Melee Weapon . | . . . Unidentified Prototypes . | . . . Parts Lost 3 | . . 3 Power 1 | . . 1 Propulsion 1 | . . 1 Utility 1 | . . 1 Weapon . | . . . Highest Loss Streak 3 | . . 3 To Critical Strikes 1 | . . 1 Average Slot Usage (%) 96 | . 100 81 Engine 13 | . 14 9 Wheel 26 | . 28 20 Device 26 | . 28 20 Processor 1 | . . 7 Energy Gun 13 | . 14 11 Ballistic Gun 13 | . 14 11 Naked Turns . | . . . Heaviest Build 9 | 9 9 9 Greatest Support 31 | 31 25 25 Greatest Overweight (x) . | . . . Average Overweight (x) . | . . . Largest Inventory Capacity 2 | 2 2 2 Average Capacity 1 | 1 2 2 Most Carried 2 | 2 2 2 Average Carried 1 | . 1 1 Final Capacity 2 | 2 2 2 Final Carried 2 | 2 2 1 Class Distribution -------------------- 87% | Scavenger-Mutant 9% | Scavenger-Skirmisher 3% | Mutant Dominant Class ---------------- Scavenger-Mutant | -10/Materials Scavenger-Skirmisher | -9/Materials Resources | -11 -10 -9 ----------- Run | Scr Mat Mat Matter Collected 484 | 321 163 . Remotely . | . . . Salvage Created 762 | 215 351 196 Parts 59 | 13 29 17 Haulers Intercepted . | . . . Recyclers Shooed . | . . . Parts Field Recycled . | . . . Retrieved Matter . | . . . Parts Self-Destructed . | . . . Prevented . | . . . Kills | -11 -10 -9 ------- Run | Scr Mat Mat Combat Hostiles Destroyed 14 | . 8 6 Guns 13 | . 8 5 AOE 1 | . . 1 Classes Destroyed 9 | 3 4 2 Worker 2 | 2 . . Builder 2 | . 2 . Tunneler 5 | 5 . . Recycler 1 | 1 . . Watcher 2 | . 2 . Swarmer 3 | . 3 . Grunt 9 | . 5 4 Brawler 1 | . . 1 Sentry 1 | . . 1 Best Kill Streak 6 | 4 4 6 Combat Bots Only 6 | . 4 6 Max Kills in Single Turn 2 | 2 1 1 Gunslinging . | . . . Exploded 1 | . . 1 Melee . | . . . Uniques/NPCs Destroyed . | . . . Combat | -11 -10 -9 -------- Run | Scr Mat Mat Damage Taken 925 | . 480 445 Core 716 | . 380 336 Absorbed by Shields . | . . . Redirected to Core 621 | . 307 314 Core Remaining (%) 77 | 100 54 . Volleys Fired 69 | 17 38 14 Largest 2 | 2 2 2 Hottest 70 | 70 70 70 Shots Fired 138 | 34 76 28 Gun 138 | 34 76 28 Cannon . | . . . Launcher . | . . . Special . | . . . Kinetic 69 | 17 38 14 Thermal 69 | 17 38 14 Explosive . | . . . Electromagnetic . | . . . Robot Hit Streak 14 | 5 14 7 Robot Miss Streak 4 | 2 4 2 Penetration Max . | . . . Secondary Targets 5 | . 3 2 Max Gunslinging Chain 1 | . 1 1 Shots Hit Robots 89 | 20 50 19 Core Hits 38 | 9 19 10 Critical Kills . | . . . Critical Parts Destroyed . | . . . Critical Strikes 5 | 1 3 1 Burn 5 | 1 3 1 Melee Attacks . | . . . Impact . | . . . Slashing . | . . . Piercing . | . . . Sneak Attacks . | . . . Combat Hostiles . | . . . Follow-up Attacks . | . . . Damage Inflicted 1236 | 263 674 299 Guns 1187 | 263 674 250 Cannons . | . . . Explosions 49 | . . 49 Melee . | . . . Ramming . | . . . Kinetic 640 | 150 353 137 Thermal 596 | 113 321 162 Explosive . | . . . Electromagnetic . | . . . Impact . | . . . Slashing . | . . . Piercing . | . . . Highest Corruption 6 | . 1 6 Average Corruption 1 | . 1 5 Corruption Purged . | . . . Corruption Blocked . | . . . Effects 3 | . 3 . Message Errors 1 | . 1 . Matter Fused 2 | . 2 . Overload Shots . | . . . Overflow Damage . | . . . Projectiles . | . . . Explosions . | . . . Melee . | . . . Knockbacks . | . . . Impact . | . . . Kinetic . | . . . Secondary . | . . . Self-Inflicted Damage 111 | . . 111 Shots 2 | . . 2 Rammed . | . . . Targets Rammed . | . . . Kicked . | . . . Crushed . | . . . Highest Temperature 270 | 18 270 83 Average Temperature 61 | 9 69 47 Received Heat Transfer 327 | . 210 117 Effects 1 | . 1 . Energy Bleed 1 | . 1 . Siege Activations . | . . . Robots Corrupted . | . . . Combat Hostiles . | . . . Parts Fried . | . . . Impact Corruptions . | . . . Robots Melted . | . . . Combat Hostiles . | . . . Parts Melted 7 | 2 2 3 Heat Transferred 2098 | 407 1184 507 Parts Sabotaged . | . . . Parts Stolen . | . . . Parts Stripped . | . . . Power Chain Reactions . | . . . Missiles Intercepted . | . . . Alert | -11 -10 -9 ------- Run | Scr Mat Mat Peak Influence 467 | 40 310 467 Initial 130 | . 26 130 Average 170 | 16 207 279 Maximum Alert Level 2 | . 1 2 Low Security (%) 56 | 100 42 42 Level 1 37 | . 57 15 Level 2 5 | . . 42 Level 3 . | . . . Level 4 . | . . . Level 5 . | . . . High Security . | . . . Max Security . | . . . Squads Dispatched 3 | . 3 . Investigation 2 | . 2 . Extermination . | . . . Reinforcement 1 | . 1 . Assault . | . . . Garrison . | . . . Intercept . | . . . Searches Triggered . | . . . Construction Impeded . | . . . Haulers Reinforced . | . . . Active Scanning Responses . | . . . Cargo Convoy Interrupts . | . . . Stealth | -11 -10 -9 --------- Run | Scr Mat Mat Distress Signals 1 | . 1 . Communications Jammed . | . . . Distress Signals . | . . . Times Spotted 22 | . 14 8 Peak Tracking Total 7 | . 3 7 Tactical Retreats 1 | . . 1 Traps | -11 -10 -9 ------- Run | Scr Mat Mat Traps Triggered 1 | . 1 . Indirectly . | . . . Trap Hack Attempts . | . . . Triggered . | . . . Disarmed . | . . . Reprogrammed . | . . . Reused . | . . . Traps Extracted . | . . . Installed . | . . . Triggered . | . . . Machines | -11 -10 -9 ---------- Run | Scr Mat Mat Machines Disabled 3 | . . 3 Max in Single Turn 3 | . . 3 Machines Sabotaged . | . . . Garrisons Compromised . | . . . Overloaded Fab Kills . | . . . Hacking | -11 -10 -9 --------- Run | Scr Mat Mat Machines Accessed 6 | . 4 2 Terminals 6 | . 4 2 Fabricators . | . . . Repair Stations . | . . . Recycling Units . | . . . Scanalyzers . | . . . Garrison Access . | . . . Total Hacks 18 | . 11 7 Successful 13 | . 7 6 Failed 5 | . 4 1 Catastrophic 1 | . 1 . Database Lockouts . | . . . Manual 14 | . 9 5 Terminals 18 | . 11 7 Fabricators . | . . . Repair Stations . | . . . Recycling Units . | . . . Scanalyzers . | . . . Garrison Access . | . . . Terminal Hacks 4 | . 2 2 Locate Traps 1 | . . 1 Transport Status 1 | . 1 . Registered Components 1 | . . 1 Zone Layout 1 | . 1 . Fabricator Hacks . | . . . Repair Station Hacks . | . . . Recycling Unit Hacks . | . . . Scanalyzer . | . . . Garrison Access Hacks . | . . . Unauthorized Hacks 7 | . 4 3 Terminals 7 | . 4 3 Assimilate 2 | . 1 1 Botnet 5 | . 3 2 Fabricators . | . . . Repair Stations . | . . . Recycling Units . | . . . Scanalyzers . | . . . Garrison Access . | . . . Data Cores Recovered . | . . . Used . | . . . Hacking Detections 5 | . 4 1 Full Trace Events 1 | . 1 . Feedback Events 1 | . 1 . Corruption 1 | . 1 . Feedback Blocked . | . . . Robot Schematics Acquired . | . . . Robots Built . | . . . Authchips . | . . . Time . | . . . Total Robot Build Rating . | . . . Part Schematics Acquired . | . . . Parts Built . | . . . Authchips . | . . . Time . | . . . Total Part Build Rating . | . . . Parts Repaired . | . . . Time . | . . . Parts Recycled . | . . . Recycled Matter . | . . . Retrieved Matter . | . . . Retrieved Components . | . . . Parts Scanalyzed . | . . . Part Schematics Acquired . | . . . Parts Damaged . | . . . Bothacking | -11 -10 -9 ------------ Run | Scr Mat Mat Used RIF Installer . | . . . Robots Hacked . | . . . Non-combat . | . . . Combat . | . . . Robot Hacks Applied . | . . . Relay Couplers Released . | . . . Fabnet Peak Effective % . | . . . Robots Rewired . | . . . Allies Hacked . | . . . Hacks Repelled . | . . . Allies | -11 -10 -9 -------- Run | Scr Mat Mat Total Allies . | . . . Largest Group . | . . . Highest-Rated Group . | . . . Highest-Rated Ally . | . . . Total Orders . | . . . Ally Attacks . | . . . Total Damage . | . . . Kills . | . . . Allies Corrupted . | . . . Allies Melted . | . . . Intel | -11 -10 -9 ------- Run | Scr Mat Mat Robot Analysis Total . | . . . Derelict Logs Recovered . | . . . Drone Launches . | . . . Drone Recoveries . | . . . Exploration | -11 -10 -9 ------------- Run | Scr Mat Mat Turns Passed 643 | 156 399 88 Spaces Moved 488 | 103 329 56 Core 7 | 7 . . Treads . | . . . Legs . | . . . Wheels 481 | 96 329 56 Hover . | . . . Flight . | . . . Fastest Speed 50 | 50 80 80 Average Speed 81 | 87 80 80 Slowest Speed 90 | 90 80 80 Overloaded Moves . | . . . Propulsion Burnouts . | . . . Robots Hopped . | . . . Cave-ins Triggered . | . . . Exploration Rate (%) 22 | 4 52 12 Regions Visited 2 Branch Regions . Pre-discovered Areas . | . . . Known Exits Taken . | . . . Unknown Exits Taken 2 | 1 1 . Scrap Searched . | . . . Spaces Dug . | . . . Terrain Destroyed 33 | . . 33 Melee . | . . . Projectile . | . . . AOE 33 | . . 33 Terrain Rammed . | . . . Walls Destroyed . | . . . Machines Disabled . | . . . Actions | -11 -10 -9 --------- Run | Scr Mat Mat Total 596 | 135 389 72 Wait 10 | . 9 1 Move 486 | 102 328 56 Hop . | . . . Pick Up 12 | 9 3 . Fast Attach . | . . . Attach 8 | 7 . 1 Detach . | . . . Swap 2 | . 2 . Drop 3 | . 3 . Fire 69 | 17 38 14 Melee . | . . . Ram . | . . . Kick . | . . . Crush . | . . . Escape Stasis . | . . . Rewire . | . . . Trap . | . . . Miscellaneous 6 | . 6 . Route ------- -11/Scrapyard -10/Materials -9/Materials History --------- Turn | Location | Event 2 | -11/Scrapyard | Upgraded with Propulsion slot (x1) 2 | -11/Scrapyard | Upgraded with Utility slot (x1) 2 | -11/Scrapyard | Upgraded with Weapon slot (x1) 12 | -11/Scrapyard | Discovered new exit (range 16) 157 | -11/Scrapyard | Entered Materials 325 | -10/Materials | Core integrity fell below 50% 329 | -10/Materials | Build established: Scavenger-Mutant 540 | -10/Materials | Discovered new exit (range 7) 556 | -10/Materials | Entered another Materials area 558 | -9/Materials | Reached level 2 560 | -9/Materials | Upgraded with Utility slot (x1) 600 | -9/Materials | Core integrity fell below 50% 605 | -9/Materials | Reached level 3 605 | -9/Materials | Upgraded with Power slot (x1) 605 | -9/Materials | Upgraded with Weapon slot (x1) 624 | -9/Materials | Core integrity fell below 20% 644 | -9/Materials | Destroyed by Y-45 Defender with Heavy Assault Rifle Last Messages --------------- 00621_ Imp. Ion Engine melted. 00621_ Heat Sink melted. 00621_ Y-45 Defender destroyed. 00621_ Switching to secondary target: B-36 Bruiser. 00623_ Critical hit (Smash). 00623_ Wheel destroyed. 00623_ Imp. Terrain Scanner destroyed. 00623_ System corrupted by crushing effect (+2). 00623_ System corrupted by crushing effect (+1). 00625_ U-05 Engineer builds a Wall. 00626_ Lgt. Ion Engine destroyed. 00626_ System corrupted by crushing effect (+3). 00629_ U-05 Engineer builds a Wall. 00633_ U-05 Engineer builds a Door. 00633_ B-36 Bruiser destroyed. 00633_ Switching to secondary target: G-34 Mercenary. 00637_ U-05 Engineer lays Concrete. 00638_ U-05 Engineer builds a Wall. 00642_ G-34 Mercenary destroyed. 00642_ U-05 Engineer lays Concrete. Map ----- +----------------------------------------------------+ | | | | | | | | | | | | | | | | | ????#?##?#?#?##??#?#?#?####?####?#???? | | ?#??###?##??##?#?##????###?###?###???? | | #####??#?#?#?###? ?? ? ######?####??# | | ??#???#####?###? ?"? ?? ######?##??#?# | | #??###?#####?### ??? ###?####?##?## | | #?####??########?"""? ? #######?#####? | | #??##?#?# # ? ?###########?#? | | #?#?##### """ ??""? ? # ######?#### | | ###?#??#? "Y" # ?"" # # ###### | | ?#?###### #?""? + #"""";;;### | | #####??##? ?? # "" # | | ####?#### ? ####?##### # | | ########+############ # # | | "" + # # | | "" ###### u[ # | | "" #?#####+###" x### [%# # | | #? ?#T #####Y!! !# | | "" #? ?? ?#" +^ @=% = # | | "" # "?? ""? + #^ !%= *%[ # | | "" # ?"" ""? # # !!^* ;;;;;;;;## | | #?"?? ""? # ###### !^[[ # ####### | | #### ??? ??# ###?##^!![^ ####?###?# | | #### ? # ###### ######?#?? | | ???#???#??#### ## ##########?######## | | ?######??#?### ## ?#####?## | | ?####?##???## ?# ?""? ?? #####?#?# | | ? ? ? ?? ? # """ """####??### | | ? ? ?? ? """ ? S?#####???# | | ?##???###?#?# ? ? #####??#? | | ????????????## ### ? ? ? ? ###?####? | | ?????????????# ?##??? ?? ###?##??# | | ?????????????? ???????#??#??####?????# | | ???????????????????#?##???#??##???#?#? | | ??????????????????? ? ?#?"""??"? ##??? | | ?????????????????????????????????????? | | ?????????????????????????????????????? | | ?????????????????????????????????????? | | ?????????????????????????????????????? | | ?????????????????????????????????????? | | ?????????????????????????????????????? | | ?????????????????????????????????????? | | ?????????????????????????????????????? | +----------------------------------------------------+ Best States ------------- Heat Dissipation 25 Energy Generation 15 Energy Capacity 125 Matter Stores 300 Matter Capacity 300 Sight Range 17 Robot Scan Range 10 Terrain Scan Range 16 Terrain Scan Density 410 Resistance: KI 5 Evasion (%) 44 Item Schematics ----------------- None Robot Schematics ------------------ None Fabricated ------------ Nothing Alien Tech Used ----------------- None Achievements -------------- None Challenges ------------ None RPGLIKE | -11 -10 -9 --------- Run | Scr Mat Mat Levels Raised 2 | . . 2 XP Earned 6882 | 3000 1200 2682 XP Spent 5940 | 3000 . 2940 Upgrades 21 | 11 . 10 Power Slot 1 | . . 1 Propulsion Slot 1 | 1 . . Utility Slot 2 | 1 . 1 Weapon Slot 2 | 1 . 1 Energy Generation 1 | 1 . . Mass Support 1 | 1 . . Inventory Capacity 2 | 2 . . Sight Range 1 | . . 1 Sensor Range 5 | 4 . 1 Terrain Scan Density 4 | . . 4 KI Resistance % 1 | . . 1 Protomatter Created 119 | . 35 84 Integrity Restored 105 | . 105 . Core 105 | . 105 . Protomatter Decayed . | . . . Game ------ Seed ImpactMinesnifferFlail Manual? 0 Play Time 00:09:29 Cumulative 114.0 hours Start 2022.03.27 @ 17:40:34 End 2022.03.27 @ 17:48:21 Sessions 1 Manual Loads 0 Difficulty Rogue Special Mode Winter2019/RPGLIKE Game No. 43 Rogue 25 Adventurer 14 Explorer 4 Win Type - Total 14 Types 8/5/0/0/0/0/0/0/1 Lore% 50 Gallery% 57 Achievement% 57 Wizard Run 0 Options --------- ASCII 0 Keyboard 0 Movement Mouse Keybinds 0 Fullscreen 1 Font 18/SmallcapsGlow Map View 76x50 Tactical HUD 1 Map Filters NONE Filters NONE Steam 1 RUN: ad0ca015-1539-44b8-af6f-20b03454bd9e